[Event "1er Tournoi de GM du Barreau de Paris"]
[Site "Paris, France"]
[Date "2019.12.17"]
[Round "3.5"]
[White "MOUHAMAD, Joachim"]
[Black "DI NICOLANTONIO, Lucas"]
[Result "0-1"]
[TimeControl "1h30+30s\cp"]
[WhiteTitle "FM"]
[BlackTitle "IM"]
[WhiteElo "2293"]
[BlackElo "2408"]

1. d4 {[%clk 01:30:57]} {[%emt 00:00:03]} d5 {[%clk 01:29:47]} {[%emt
00:01:13]} 2. Bf4 {[%clk 01:31:20]} {[%emt 00:00:08]} c5 {[%clk 01:29:47]}
{[%emt 00:00:29]} 3. e3 {[%clk 01:31:37]} {[%emt 00:00:13]} cxd4 {[%clk
01:30:02]} {[%emt 00:00:15]} 4. exd4 {[%clk 01:31:58]} {[%emt 00:00:09]} Nc6
{[%clk 01:30:13]} {[%emt 00:00:18]} 5. Nf3 {[%clk 01:32:06]} {[%emt 00:00:22]}
Bf5 {[%clk 01:28:46]} {[%emt 00:01:57]} 6. c3 {[%clk 01:32:06]} {[%emt
00:00:31]} e6 {[%clk 01:28:18]} {[%emt 00:00:57]} 7. Qb3 {[%clk 01:32:08]}
{[%emt 00:00:29]} Qd7 {[%clk 01:26:39]} {[%emt 00:02:08]} 8. Nh4 {[%clk
01:28:44]} {[%emt 00:03:54]} Bg6 {[%clk 01:03:36]} {[%emt 00:23:33]} 9. Nxg6
{[%clk 01:27:32]} {[%emt 00:01:42]} hxg6 {[%clk 01:04:00]} {[%emt 00:00:06]} 10.
Nd2 {[%clk 01:27:35]} {[%emt 00:00:28]} Bd6 {[%clk 00:58:09]} {[%emt 00:06:20]}
11. Bxd6 {[%clk 01:27:43]} {[%emt 00:00:22]} Qxd6 {[%clk 00:58:34]} {[%emt
00:00:05]} 12. Nf3 {[%clk 01:27:44]} {[%emt 00:00:29]} Nge7 {[%clk 00:56:53]}
{[%emt 00:02:11]} 13. h4 {[%clk 01:04:02]} {[%emt 00:24:12]} Rb8 {[%clk
00:51:29]} {[%emt 00:05:54]} 14. a4 {[%clk 01:01:43]} {[%emt 00:02:50]} a6
{[%clk 00:47:53]} {[%emt 00:04:06]} 15. a5 {[%clk 00:53:38]} {[%emt 00:08:35]}
f6 {[%clk 00:41:09]} {[%emt 00:07:14]} 16. Be2 {[%clk 00:53:25]} {[%emt
00:00:43]} g5 {[%clk 00:39:04]} {[%emt 00:02:34]} 17. g3 {[%clk 00:48:40]}
{[%emt 00:05:16]} Kf7 {[%clk 00:33:04]} {[%emt 00:06:30]} 18. Kd2 {[%clk
00:26:27]} {[%emt 00:22:43]} g4 {[%clk 00:25:55]} {[%emt 00:07:39]} 19. Ne1
{[%clk 00:25:28]} {[%emt 00:01:29]} e5 {[%clk 00:20:25]} {[%emt 00:06:00]} 20.
Nc2 {[%clk 00:23:43]} {[%emt 00:02:15]} exd4 {[%clk 00:15:11]} {[%emt
00:05:44]} 21. cxd4 {[%clk 00:24:11]} {[%emt 00:00:02]} f5 {[%clk 00:15:08]}
{[%emt 00:00:33]} 22. Ra4 {[%clk 00:22:29]} {[%emt 00:02:12]} Rhe8 {[%clk
00:12:39]} {[%emt 00:02:58]} 23. Ne3 {[%clk 00:21:49]} {[%emt 00:01:10]} Kf8
{[%clk 00:08:42]} {[%emt 00:04:27]} 24. Qd3 {[%clk 00:10:34]} {[%emt 00:11:45]}
Kg8 {[%clk 00:05:53]} {[%emt 00:03:19]} 25. Bd1 {[%clk 00:09:20]} {[%emt
00:01:44]} Rbc8 {[%clk 00:05:08]} {[%emt 00:01:16]} 26. Bb3 {[%clk 00:07:52]}
{[%emt 00:01:59]} Nxa5 {[%clk 00:04:52]} {[%emt 00:00:46]} 27. Ba2 {[%clk
00:07:21]} {[%emt 00:01:00]} Nac6 {[%clk 00:02:12]} {[%emt 00:03:10]} 28. Qb3
{[%clk 00:03:28]} {[%emt 00:04:23]} Qf6 {[%clk 00:02:04]} {[%emt 00:00:37]} 29.
Qb6 {[%clk 00:03:37]} {[%emt 00:00:22]} Kh8 {[%clk 00:02:12]} 30. h5 {[%clk
00:03:40]} {[%emt 00:00:49]} f4 {[%emt 00:01:41]} 31. Nxg4 {[%clk 00:00:34]}
{[%emt 00:02:27]} Qg5 {[%clk 00:02:37]} {[%emt 00:00:04]} 32. f3 {[%clk
00:00:34]} {[%emt 00:00:30]} fxg3+ {[%emt 00:01:07]} 33. Kd1 Nf5 {[%clk
00:02:23]} {[%emt 00:00:39]} 34. h6 {[%clk 00:00:49]} {[%emt 00:00:13]} g6
{[%clk 00:01:58]} {[%emt 00:00:55]} 35. Qxb7 {[%clk 00:00:32]} {[%emt
00:00:48]} 0-1



[ePGN "0.1;DGT LiveChess/2.2.5"]

[Event "1er Tournoi de GM du Barreau de Paris"]
[Site "Paris, France"]
[Date "2019.12.18"]
[Round "4.1"]
[White "DAVID, Alberto"]
[Black "MOUHAMAD, Joachim"]
[Result "1-0"]
[TimeControl "1h30+30s\cp"]
[WhiteTitle "GM"]
[BlackTitle "FM"]
[WhiteElo "2545"]
[BlackElo "2293"]

1. Nf3 {[%clk 01:30:47]} {[%emt 00:00:11]} Nf6 {[%clk 01:30:30]} {[%emt
00:00:30]} 2. c4 {[%clk 01:28:42]} {[%emt 00:02:36]} g6 {[%clk 01:30:50]}
{[%emt 00:00:10]} 3. Nc3 {[%clk 01:26:38]} {[%emt 00:02:34]} Bg7 {[%clk
01:31:10]} {[%emt 00:00:09]} 4. e4 {[%clk 01:26:34]} {[%emt 00:00:35]} d6
{[%clk 01:31:37]} {[%emt 00:00:02]} 5. d4 {[%clk 01:26:58]} {[%emt 00:00:06]}
O-O {[%clk 01:32:00]} {[%emt 00:00:07]} 6. h3 {[%clk 01:19:09]} {[%emt
00:08:19]} e5 {[%clk 01:29:18]} {[%emt 00:03:12]} 7. d5 {[%clk 01:19:33]}
{[%emt 00:00:06]} a5 {[%clk 01:28:46]} {[%emt 00:01:02]} 8. g4 {[%clk
01:18:09]} {[%emt 00:01:54]} Ne8 {[%clk 01:28:00]} {[%emt 00:01:17]} 9. Rg1
{[%clk 01:10:04]} {[%emt 00:08:35]} Na6 {[%clk 01:26:25]} {[%emt 00:02:05]} 10.
Bg5 {[%clk 01:03:07]} {[%emt 00:07:27]} f6 {[%clk 01:23:48]} {[%emt 00:03:08]}
11. Be3 {[%clk 01:03:32]} {[%emt 00:00:05]} f5 {[%clk 01:10:19]} {[%emt
00:13:58]} 12. gxf5 {[%clk 00:57:41]} {[%emt 00:06:21]} gxf5 {[%clk 01:10:46]}
{[%emt 00:00:03]} 13. Bg5 {[%clk 00:55:40]} {[%emt 00:02:31]} Qd7 {[%clk
01:10:47]} {[%emt 00:00:29]} 14. Nh4 {[%clk 00:55:47]} {[%emt 00:00:23]} fxe4
{[%clk 01:08:20]} {[%emt 00:02:56]} 15. Nxe4 {[%clk 00:55:25]} {[%emt
00:00:52]} Nc5 {[%clk 00:59:37]} {[%emt 00:09:13]} 16. Nxc5 {[%clk 00:54:34]}
{[%emt 00:01:21]} dxc5 {[%clk 00:59:55]} {[%emt 00:00:12]} 17. Bd3 {[%clk
00:54:08]} {[%emt 00:00:57]} Qf7 {[%clk 00:49:47]} {[%emt 00:10:37]} 18. Qc2
{[%clk 00:48:29]} {[%emt 00:06:09]} Qh5 {[%clk 00:49:59]} {[%emt 00:00:19]} 19.
Be2 {[%clk 00:46:56]} {[%emt 00:02:03]} Qf7 {[%clk 00:50:08]} {[%emt 00:00:20]}
20. O-O-O {[%clk 00:46:51]} {[%emt 00:00:35]} Ra6 {[%clk 00:45:07]} {[%emt
00:05:31]} 21. Rg3 {[%clk 00:34:01]} {[%emt 00:13:20]} Kh8 {[%clk 00:32:35]}
{[%emt 00:13:02]} 22. Rdg1 {[%clk 00:28:07]} {[%emt 00:06:23]} Qxf2 {[%clk
00:25:00]} {[%emt 00:08:06]} 23. Kb1 {[%clk 00:23:45]} {[%emt 00:04:52]} Qf7
{[%clk 00:07:13]} {[%emt 00:18:17]} 24. Rf3 {[%clk 00:16:44]} {[%emt 00:07:31]}
Qg8 {[%clk 00:06:16]} {[%emt 00:01:27]} 25. Be7 {[%clk 00:10:34]} {[%emt
00:06:40]} Rxf3 {[%clk 00:05:49]} {[%emt 00:00:57]} 26. Nxf3 {[%clk 00:11:01]}
{[%emt 00:00:03]} Rh6 {[%clk 00:03:37]} {[%emt 00:02:42]} 27. Nxe5 {[%clk
00:10:42]} {[%emt 00:00:49]} Nd6 {[%clk 00:02:58]} {[%emt 00:01:10]} 28. Qd2
{[%clk 00:04:10]} {[%emt 00:07:01]} Bf5+ {[%clk 00:01:42]} {[%emt 00:01:46]} 29.
Ka1 {[%clk 00:04:01]} {[%emt 00:00:40]} Qe8 {[%clk 00:00:52]} {[%emt 00:01:20]}
30. Rxg7 {[%clk 00:01:02]} {[%emt 00:03:29]} Kxg7 {[%clk 00:01:21]} {[%emt
00:00:01]} 31. Qg5+ {[%clk 00:01:27]} {[%emt 00:00:05]} Rg6 {[%clk 00:01:05]}
{[%emt 00:00:46]} 32. Nxg6 {[%clk 00:01:30]} {[%emt 00:00:26]} Qxg6 {[%clk
00:00:48]} {[%emt 00:00:48]} 33. h4 {[%clk 00:00:36]} {[%emt 00:01:25]} Qxg5
{[%clk 00:00:53]} {[%emt 00:00:24]} 34. Bxg5 {[%clk 00:01:02]} {[%emt
00:00:04]} Kf7 {[%clk 00:00:34]} {[%emt 00:00:50]} 35. Bd8 {[%clk 00:01:17]}
{[%emt 00:00:15]} Ne8 {[%clk 00:00:39]} {[%emt 00:00:26]} 36. Bh5+ {[%clk
00:01:18]} {[%emt 00:00:28]} Bg6 {[%clk 00:00:40]} {[%emt 00:00:29]} 37. Bg4
{[%clk 00:01:45]} {[%emt 00:00:03]} Bd3 {[%clk 00:00:42]} {[%emt 00:00:29]} 38.
b3 {[%clk 00:02:07]} {[%emt 00:00:07]} a4 {[%clk 00:00:41]} {[%emt 00:00:31]}
39. Kb2 {[%clk 00:02:30]} {[%emt 00:00:06]} axb3 {[%clk 00:01:04]} {[%emt
00:00:07]} 40. axb3 {[%clk 00:02:59]} {[%emt 00:00:01]} b5 {[%clk 00:01:02]}
{[%emt 00:00:32]} 41. Kc3 {[%clk 00:02:39]} {[%emt 00:00:49]} bxc4 {[%clk
00:01:26]} {[%emt 00:00:06]} 42. bxc4 {[%clk 00:02:57]} {[%emt 00:00:12]} Bf1
{[%clk 00:01:00]} {[%emt 00:00:56]} 43. Bd7 {[%clk 00:00:32]} {[%emt 00:02:56]}
Nd6 {[%clk 00:01:01]} {[%emt 00:00:29]} 44. Be6+ {[%clk 00:00:41]} {[%emt
00:00:21]} Ke8 {[%clk 00:01:09]} {[%emt 00:00:22]} 45. Bxc7 {[%clk 00:01:05]}
{[%emt 00:00:05]} Ne4+ {[%clk 00:00:59]} {[%emt 00:00:40]} 46. Kb3 {[%clk
00:01:21]} {[%emt 00:00:15]} Nd2+ {[%clk 00:01:18]} {[%emt 00:00:11]} 47. Kc3
{[%clk 00:01:04]} {[%emt 00:00:47]} Ne4+ {[%clk 00:01:47]} {[%emt 00:00:01]} 48.
Kb3 {[%clk 00:01:20]} {[%emt 00:00:14]} Nd2+ {[%clk 00:02:16]} {[%emt
00:00:02]} 49. Kc2 {[%clk 00:01:16]} {[%emt 00:00:34]} Nxc4 {[%clk 00:02:16]}
50. d6 {[%clk 00:01:16]} Ne5 {[%clk 00:02:16]} 51. Bb6 {[%clk 00:01:16]} Nd7
{[%clk 00:02:16]} 52. Ba5 {[%clk 00:01:16]} Be2 {[%clk 00:02:16]} 53. Bf5
{[%clk 00:01:16]} h5 {[%clk 00:02:16]} 54. Bg6+ {[%clk 00:01:16]} Kf8 {[%clk
00:02:16]} 55. Bc3 {[%clk 00:01:16]} Bg4 {[%clk 00:02:16]} 56. Kd3 {[%clk
00:01:16]} Nb6 {[%clk 00:02:16]} 57. Ke4 {[%clk 00:01:16]} Na4 {[%clk
00:02:16]} 58. Bf6 {[%clk 00:01:16]} Nb6 {[%clk 00:02:16]} 59. Bc3 {[%clk
00:01:16]} Bd1 {[%clk 00:02:16]} 60. Ke5 {[%clk 00:01:16]} Kg7 {[%clk
00:02:16]} 61. Kf5+ {[%clk 00:01:16]} Kh6 {[%clk 00:02:16]} 62. Bd2+ {[%clk
00:01:16]} Kg7 {[%clk 00:02:16]} 63. Kg5 {[%clk 00:01:16]} c4 {[%clk 00:02:16]}
64. Bc3+ {[%clk 00:01:16]} Kf8 {[%clk 00:02:16]} 65. Bd4 {[%clk 00:01:16]} Nd7
{[%clk 00:02:16]} 66. Kh6 {[%clk 00:01:16]} Be2 {[%clk 00:02:16]} 67. Kh7
{[%clk 00:01:16]} Bd3 {[%clk 00:02:16]} 68. Bg7# {[%clk 00:01:16]} 1-0

[Event "1er Tournoi de GM du Barreau de Paris"]
[Site "Paris, France"]
[Date "2019.12.18"]
[Round "4.2"]
[White "FEDORCHUK, Sergey"]
[Black "SOCHACKI, Wojtek"]
[Result "1-0"]
[TimeControl "1h30+30s\cp"]
[WhiteTitle "GM"]
[BlackTitle "IM"]
[WhiteElo "2636"]
[BlackElo "2320"]

1. e4 {[%clk 01:30:56]} {[%emt 00:00:02]} e5 {[%clk 01:27:34]} {[%emt
00:03:26]} 2. Nf3 {[%clk 01:30:52]} {[%emt 00:00:35]} Nc6 {[%clk 01:28:00]}
{[%emt 00:00:04]} 3. Bb5 {[%clk 01:31:10]} {[%emt 00:00:11]} a6 {[%clk
01:28:24]} {[%emt 00:00:06]} 4. Ba4 {[%clk 01:31:32]} {[%emt 00:00:07]} Nf6
{[%clk 01:28:50]} {[%emt 00:00:05]} 5. d3 {[%clk 01:28:26]} {[%emt 00:03:36]}
b5 {[%clk 01:28:08]} {[%emt 00:01:12]} 6. Bb3 {[%clk 01:28:33]} {[%emt
00:00:23]} Be7 {[%clk 01:28:33]} {[%emt 00:00:05]} 7. a4 {[%clk 01:24:29]}
{[%emt 00:04:34]} Bb7 {[%clk 01:26:31]} {[%emt 00:02:32]} 8. Nc3 {[%clk
01:21:20]} {[%emt 00:03:40]} O-O {[%clk 01:21:53]} {[%emt 00:05:07]} 9. Bd2
{[%clk 01:15:38]} {[%emt 00:06:12]} Nd4 {[%clk 01:18:04]} {[%emt 00:04:19]} 10.
Nxd4 {[%clk 01:02:41]} {[%emt 00:13:27]} exd4 {[%clk 01:18:21]} {[%emt
00:00:13]} 11. Ne2 {[%clk 01:03:08]} {[%emt 00:00:03]} d5 {[%clk 01:11:06]}
{[%emt 00:07:45]} 12. e5 {[%clk 00:58:36]} {[%emt 00:05:03]} Ng4 {[%clk
01:10:21]} {[%emt 00:01:14]} 13. Bf4 {[%clk 00:46:37]} {[%emt 00:12:29]} f6
{[%clk 01:05:03]} {[%emt 00:05:47]} 14. exf6 {[%clk 00:44:19]} {[%emt
00:02:49]} Bxf6 {[%clk 00:54:49]} {[%emt 00:10:43]} 15. O-O {[%clk 00:44:06]}
{[%emt 00:00:43]} Bh4 {[%clk 00:54:53]} {[%emt 00:00:26]} 16. g3 {[%clk
00:21:21]} {[%emt 00:23:15]} Bf6 {[%clk 00:52:40]} {[%emt 00:02:43]} 17. axb5
{[%clk 00:16:16]} {[%emt 00:05:36]} axb5 {[%clk 00:46:56]} {[%emt 00:06:14]} 18.
Rxa8 {[%clk 00:16:19]} {[%emt 00:00:27]} Bxa8 {[%clk 00:47:18]} {[%emt
00:00:08]} 19. h3 {[%clk 00:16:41]} {[%emt 00:00:07]} Ne5 {[%clk 00:46:55]}
{[%emt 00:00:54]} 20. Nxd4 {[%clk 00:16:31]} {[%emt 00:00:40]} Qd7 {[%clk
00:41:55]} {[%emt 00:05:29]} 21. Re1 {[%clk 00:05:02]} {[%emt 00:12:00]} Re8
{[%clk 00:33:26]} {[%emt 00:08:59]} 22. Bxe5 {[%clk 00:03:40]} {[%emt
00:01:52]} Rxe5 {[%clk 00:32:45]} {[%emt 00:01:10]} 23. Rxe5 {[%clk 00:03:47]}
{[%emt 00:00:23]} Bxe5 {[%clk 00:33:12]} {[%emt 00:00:03]} 24. Qa1 {[%clk
00:03:42]} {[%emt 00:00:35]} Bb7 {[%clk 00:32:19]} {[%emt 00:01:23]} 25. Qa7
{[%clk 00:03:00]} {[%emt 00:01:12]} c6 {[%clk 00:30:50]} {[%emt 00:01:59]} 26.
c3 {[%clk 00:02:52]} {[%emt 00:00:38]} h5 {[%clk 00:28:32]} {[%emt 00:02:47]}
27. h4 {[%clk 00:01:44]} {[%emt 00:01:38]} Bf6 {[%clk 00:21:53]} {[%emt
00:07:09]} 28. Bd1 {[%clk 00:01:42]} {[%emt 00:00:32]} g6 {[%clk 00:22:08]}
{[%emt 00:00:14]} 29. Bf3 {[%clk 00:01:28]} {[%emt 00:00:45]} Kg7 {[%clk
00:21:34]} {[%emt 00:01:04]} 30. Kg2 {[%clk 00:00:50]} {[%emt 00:01:08]} Kh6
{[%clk 00:18:10]} {[%emt 00:03:53]} 31. b4 {[%clk 00:00:37]} {[%emt 00:00:43]}
g5 {[%clk 00:13:12]} {[%emt 00:05:28]} 32. hxg5+ {[%clk 00:01:01]} {[%emt
00:00:06]} Kxg5 {[%clk 00:12:36]} {[%emt 00:01:06]} 33. Qb8 {[%clk 00:01:17]}
{[%emt 00:00:14]} Bc8 {[%clk 00:12:11]} {[%emt 00:00:56]} 34. Qf4+ {[%clk
00:01:20]} {[%emt 00:00:27]} Kg6 {[%clk 00:12:39]} {[%emt 00:00:01]} 35. Bxh5+
{[%clk 00:01:14]} {[%emt 00:00:36]} Kg7 {[%clk 00:10:14]} {[%emt 00:02:55]} 36.
Bf3 {[%clk 00:01:38]} {[%emt 00:00:06]} Qh3+ {[%clk 00:09:50]} {[%emt
00:00:53]} 37. Kg1 {[%clk 00:02:03]} {[%emt 00:00:05]} Kg6 {[%clk 00:09:35]}
{[%emt 00:00:45]} 38. Nxc6 {[%clk 00:01:19]} {[%emt 00:01:15]} Qf5 {[%clk
00:09:47]} {[%emt 00:00:18]} 39. Qxf5+ {[%clk 00:00:41]} {[%emt 00:01:08]} Bxf5
{[%clk 00:10:12]} {[%emt 00:00:05]} 40. Nd4 {[%clk 00:00:49]} {[%emt 00:00:22]}
Bxd3 {[%clk 00:10:34]} {[%emt 00:00:08]} 41. Bxd5 {[%clk 00:01:10]} {[%emt
00:00:08]} Bg5 {[%clk 00:10:16]} {[%emt 00:00:48]} 42. f4 {[%clk 00:01:33]}
{[%emt 00:00:08]} Bf6 {[%clk 00:10:29]} {[%emt 00:00:16]} 43. Kf2 {[%clk
00:01:58]} {[%emt 00:00:04]} 1-0

[Event "1er Tournoi de GM du Barreau de Paris"]
[Site "Paris, France"]
[Date "2019.12.18"]
[Round "4.3"]
[White "DI NICOLANTONIO, Lucas"]
[Black "LAMARD, Guillaume"]
[Result "0-1"]
[TimeControl "1h30+30s\cp"]
[WhiteTitle "IM"]
[BlackTitle "FM"]
[WhiteElo "2408"]
[BlackElo "2452"]

1. e4 {[%clk 01:23:26]} {[%emt 00:07:33]} c5 {[%clk 01:30:53]} {[%emt
00:00:07]} 2. Nc3 {[%clk 01:22:30]} {[%emt 00:01:26]} d6 {[%clk 01:31:09]}
{[%emt 00:00:14]} 3. d4 {[%clk 01:22:39]} {[%emt 00:00:20]} cxd4 {[%clk
01:31:35]} {[%emt 00:00:04]} 4. Qxd4 {[%clk 01:23:05]} {[%emt 00:00:05]} Nc6
{[%clk 01:32:01]} {[%emt 00:00:04]} 5. Qd2 {[%clk 01:23:24]} {[%emt 00:00:10]}
g6 {[%clk 01:31:28]} {[%emt 00:01:03]} 6. b3 {[%clk 01:23:04]} {[%emt
00:00:49]} Bh6 {[%clk 01:31:52]} {[%emt 00:00:07]} 7. f4 {[%clk 01:23:22]}
{[%emt 00:00:11]} Nf6 {[%clk 01:31:15]} {[%emt 00:01:07]} 8. Bb2 {[%clk
01:23:18]} {[%emt 00:00:33]} e5 {[%clk 01:29:14]} {[%emt 00:02:33]} 9. g3
{[%clk 01:19:05]} {[%emt 00:04:43]} O-O {[%clk 01:29:01]} {[%emt 00:00:43]} 10.
O-O-O {[%clk 01:16:35]} {[%emt 00:03:00]} Re8 {[%clk 01:29:05]} {[%emt
00:00:27]} 11. Kb1 {[%clk 01:09:51]} {[%emt 00:07:13]} Nd4 {[%clk 01:29:23]}
{[%emt 00:00:12]} 12. Bg2 {[%clk 00:39:35]} {[%emt 00:30:45]} Bg4 {[%clk
01:29:40]} {[%emt 00:00:13]} 13. Rf1 {[%clk 00:36:11]} {[%emt 00:03:54]} d5
{[%clk 01:28:15]} {[%emt 00:01:56]} 14. exd5 {[%clk 00:32:16]} {[%emt
00:04:24]} Bf5 {[%clk 01:28:32]} {[%emt 00:00:13]} 15. Rc1 {[%clk 00:30:24]}
{[%emt 00:02:22]} b5 {[%clk 01:09:38]} {[%emt 00:19:25]} 16. Nge2 {[%clk
00:27:58]} {[%emt 00:02:56]} b4 {[%clk 01:05:43]} {[%emt 00:04:26]} 17. Na4
{[%clk 00:28:20]} {[%emt 00:00:07]} Nxd5 {[%clk 01:04:15]} {[%emt 00:01:58]} 18.
Nxd4 {[%clk 00:27:15]} {[%emt 00:01:35]} exd4 {[%clk 01:04:33]} {[%emt
00:00:12]} 19. Bxd4 {[%clk 00:20:03]} {[%emt 00:07:42]} Qa5 {[%clk 00:47:51]}
{[%emt 00:17:12]} 20. Rhe1 {[%clk 00:17:52]} {[%emt 00:02:40]} Red8 {[%clk
00:46:00]} {[%emt 00:02:22]} 21. Qe2 {[%clk 00:16:34]} {[%emt 00:01:48]} Rac8
{[%clk 00:40:59]} {[%emt 00:05:31]} 22. Qe5 {[%clk 00:14:04]} {[%emt 00:02:59]}
f6 {[%clk 00:41:25]} {[%emt 00:00:05]} 23. Bxd5+ {[%clk 00:14:09]} {[%emt
00:00:24]} Qxd5 {[%clk 00:41:00]} {[%emt 00:00:55]} 24. Qxf6 {[%clk 00:14:13]}
{[%emt 00:00:26]} Qxd4 {[%clk 00:40:58]} {[%emt 00:00:33]} 25. Re8+ {[%clk
00:14:38]} {[%emt 00:00:05]} Rxe8 {[%clk 00:41:26]} {[%emt 00:00:02]} 26. Qxd4
{[%clk 00:15:03]} {[%emt 00:00:04]} Rxc2 {[%clk 00:38:37]} {[%emt 00:03:19]} 27.
Rxc2 {[%clk 00:04:07]} {[%emt 00:11:26]} Re1+ {[%clk 00:38:40]} {[%emt
00:00:26]} 28. Kb2 {[%clk 00:04:33]} {[%emt 00:00:04]} Bg7 {[%clk 00:39:06]}
{[%emt 00:00:04]} 29. Qxg7+ {[%clk 00:04:49]} {[%emt 00:00:14]} Kxg7 {[%clk
00:39:34]} {[%emt 00:00:03]} 30. Rc7+ {[%clk 00:05:08]} {[%emt 00:00:10]} Kh6
{[%clk 00:39:59]} {[%emt 00:00:05]} 31. a3 {[%clk 00:05:31]} {[%emt 00:00:08]}
Re2+ {[%clk 00:37:01]} {[%emt 00:03:28]} 32. Ka1 {[%clk 00:05:43]} {[%emt
00:00:18]} bxa3 {[%clk 00:36:25]} {[%emt 00:01:05]} 33. Rxa7 {[%clk 00:02:02]}
{[%emt 00:04:12]} Rxh2 {[%clk 00:35:14]} {[%emt 00:01:40]} 34. Nc3 {[%clk
00:00:48]} {[%emt 00:01:44]} Rg2 {[%clk 00:33:04]} {[%emt 00:02:40]} 35. Nd5
{[%clk 00:01:12]} {[%emt 00:00:06]} Rxg3 {[%clk 00:29:57]} {[%emt 00:03:37]} 36.
Nf6 {[%clk 00:01:37]} {[%emt 00:00:04]} g5 {[%clk 00:30:22]} {[%emt 00:00:06]}
37. fxg5+ {[%clk 00:01:19]} {[%emt 00:00:47]} Rxg5 {[%clk 00:28:02]} {[%emt
00:02:50]} 38. Ka2 {[%clk 00:01:34]} {[%emt 00:00:15]} Rg1 {[%clk 00:26:33]}
{[%emt 00:01:59]} 39. Rc7 {[%clk 00:01:25]} {[%emt 00:00:39]} Rh1 {[%clk
00:25:15]} {[%emt 00:01:48]} 40. Kxa3 {[%clk 00:01:19]} {[%emt 00:00:36]} Kg5
{[%clk 00:25:41]} {[%emt 00:00:04]} 41. Nxh7+ {[%clk 00:01:15]} {[%emt
00:00:35]} Bxh7 {[%clk 00:26:04]} {[%emt 00:00:07]} 42. b4 {[%clk 00:01:07]}
{[%emt 00:00:38]} Kf6 {[%clk 00:24:39]} {[%emt 00:01:55]} 43. b5 {[%clk
00:01:26]} {[%emt 00:00:10]} Bd3 {[%clk 00:24:37]} {[%emt 00:00:32]} 44. b6
{[%clk 00:00:47]} {[%emt 00:01:10]} Rb1 {[%clk 00:24:44]} {[%emt 00:00:22]} 45.
Rc3 {[%clk 00:01:00]} {[%emt 00:00:17]} Be4 {[%clk 00:24:44]} {[%emt 00:00:31]}
46. Rb3 {[%clk 00:01:22]} {[%emt 00:00:07]} Ra1+ {[%clk 00:25:01]} {[%emt
00:00:13]} 47. Kb4 {[%clk 00:01:20]} {[%emt 00:00:32]} Bd5 {[%clk 00:24:25]}
{[%emt 00:01:07]} 48. Ra3 {[%clk 00:00:51]} {[%emt 00:00:59]} Rb1+ {[%clk
00:23:46]} {[%emt 00:01:08]} 49. Kc5 {[%clk 00:01:17]} {[%emt 00:00:04]} Ke5
{[%clk 00:24:05]} {[%emt 00:00:11]} 50. Re3 {[%clk 00:01:43]} {[%emt 00:00:04]}
Be4 {[%clk 00:24:29]} {[%emt 00:00:06]} 51. Rc3 {[%clk 00:01:23]} {[%emt
00:00:50]} Rd1 {[%clk 00:24:17]} {[%emt 00:00:42]} 52. Rb3 {[%clk 00:00:50]}
{[%emt 00:01:03]} Rc1+ {[%clk 00:23:45]} {[%emt 00:01:01]} 53. Kb5 {[%clk
00:01:04]} {[%emt 00:00:15]} Kd6 {[%clk 00:23:27]} {[%emt 00:00:49]} 54. Rb2
{[%clk 00:00:57]} {[%emt 00:00:37]} Bc6+ {[%clk 00:23:06]} {[%emt 00:00:51]} 55.
Ka5 {[%clk 00:00:37]} {[%emt 00:00:50]} Kc5 {[%clk 00:22:53]} {[%emt 00:00:43]}
56. Ra2 {[%clk 00:00:54]} {[%emt 00:00:13]} Bd5 {[%clk 00:22:17]} {[%emt
00:01:06]} 57. Ra3 {[%clk 00:01:17]} {[%emt 00:00:07]} Rb1 {[%clk 00:22:03]}
{[%emt 00:00:44]} 58. Ka6 {[%clk 00:00:35]} {[%emt 00:01:12]} Rxb6+ {[%clk
00:22:27]} {[%emt 00:00:06]} 59. Ka7 {[%clk 00:01:02]} {[%emt 00:00:04]} Rb7+
{[%clk 00:22:52]} {[%emt 00:00:05]} 60. Ka6 {[%clk 00:01:25]} {[%emt 00:00:07]}
Rh7 {[%clk 00:19:11]} {[%emt 00:04:10]} 61. Ra5+ {[%clk 00:01:38]} {[%emt
00:00:17]} Kc6 {[%clk 00:19:37]} {[%emt 00:00:04]} 62. Ra4 {[%clk 00:01:31]}
{[%emt 00:00:38]} Rh8 {[%clk 00:19:04]} {[%emt 00:01:04]} 63. Ka7 {[%clk
00:00:45]} {[%emt 00:01:16]} Kc7 {[%clk 00:19:26]} {[%emt 00:00:07]} 64. Rc4
{[%clk 00:01:04]} {[%emt 00:00:10]} Bc6 {[%clk 00:19:52]} {[%emt 00:00:04]} 0-1